fUSD/lending_fUSD_20251224
["ID","MTS","AMOUNT","RATE_DAILY","PERIOD"]
[399656153,1766587252513,547.45,0.00032876,120]
[399656154,1766587252599,500.0,0.00032876,120]
[399656155,1766587252707,500.0,0.00032876,120]
[399656156,1766587252787,500.0,0.00032876,120]
[399656157,1766587252881,547.45,0.00032876,120]
[399656158,1766587252960,500.0,0.00032876,120]
[399656159,1766587253065,500.0,0.00032876,120]
[399656160,1766587253149,500.0,0.00032876,120]
[399656161,1766587253235,500.0,0.00032876,120]
[399656162,1766587253328,547.45,0.00032876,120]
[399656163,1766587253409,500.0,0.00032876,120]
[399656164,1766587253498,500.0,0.00032876,120]
[399656165,1766587253579,500.0,0.00032876,120]
[399656166,1766587253686,547.45,0.00032876,120]
[399656167,1766587254083,500.0,0.00032876,120]
[399656168,1766587254177,500.0,0.00032876,120]
[399656169,1766587254267,500.0,0.00032876,120]
[399656170,1766587254354,500.0,0.00032876,120]
[399656171,1766587254437,547.45,0.00032876,120]
[399656172,1766587254524,537.01570956,0.00032876,120]
[399656173,1766587254613,500.0,0.00032876,120]
[399656174,1766587254697,500.0,0.00032876,120]
[399656175,1766587254780,547.45,0.00032876,120]
[399656176,1766587254871,500.0,0.00032876,120]
[399656177,1766587254958,500.0,0.00032876,120]
[399656178,1766587255053,547.45,0.00032876,120]
[399656179,1766587255153,182.17941992,0.00032876,120]
[399656180,1766587255234,500.0,0.00032876,120]
[399656181,1766587255330,547.45,0.00032876,120]
[399656182,1766587255732,345.71991557,0.00032876,120]
[399656183,1766587255896,500.0,0.00032876,120]
[399656184,1766587256002,500.0,0.00032876,120]
[399656185,1766587256103,547.45,0.00032876,120]
[399656186,1766587256201,500.0,0.00032876,120]
[399656187,1766587256296,547.45,0.00032876,120]
[399656188,1766587256384,500.0,0.00032876,120]
[399656189,1766587256468,547.45,0.00032876,120]
[399656190,1766587256570,547.45,0.00032876,120]
[399656191,1766587256659,500.0,0.00032876,120]
[399656192,1766587256739,547.45,0.00032876,120]
[399656193,1766587256832,500.0,0.00032876,120]
[399656194,1766587256909,582.52252713,0.00032876,120]
[399656195,1766587256992,547.45,0.00032876,120]
[399656196,1766587257078,500.0,0.00032876,120]
[399656197,1766587257161,547.45,0.00032876,120]
[399656198,1766587257241,500.0,0.00032876,120]
[399656199,1766587257338,547.45,0.00032876,120]
[399656200,1766587257421,500.0,0.00032876,120]
[399656201,1766587257506,500.0,0.00032876,120]
[399656202,1766587257649,500.0,0.00032876,120]
[399656203,1766587257728,500.0,0.00032876,120]
[399656204,1766587257812,547.45,0.00032876,120]
[399656205,1766587257912,500.0,0.00032876,120]
[399656206,1766587257999,500.0,0.00032876,120]
[399656207,1766587258084,500.0,0.00032876,120]
[399656208,1766587258169,547.45,0.00032876,120]
[399656209,1766587258263,500.0,0.00032876,120]
[399656210,1766587258350,500.0,0.00032876,120]
[399656211,1766587258436,500.0,0.00032876,120]
[399656212,1766587258845,500.0,0.00032876,120]
[399656213,1766587258926,500.0,0.00032876,120]
[399656214,1766587259011,547.45,0.00032876,120]
[399656215,1766587259093,500.0,0.00032876,120]
[399656216,1766587259193,500.0,0.00032876,120]
[399656217,1766587259275,500.0,0.00032876,120]
[399656218,1766587259357,500.0,0.00032876,120]
[399656219,1766587259443,500.0,0.00032876,120]
[399656220,1766587259526,547.64060478,0.00032876,120]
[399656221,1766587259617,500.0,0.00032876,120]
[399656222,1766587259693,500.0,0.00032876,120]
[399656223,1766587259772,500.0,0.00032876,120]
[399656224,1766587259872,500.0,0.00032876,120]
[399656225,1766587259955,500.0,0.00032876,120]
[399656226,1766587260056,500.0,0.00032876,120]
[399656227,1766587260139,194.47684597,0.00032876,120]
[399656228,1766587260230,500.0,0.00032876,120]
[399656229,1766587260343,500.0,0.00032876,120]
[399656230,1766587260444,500.0,0.00032876,120]
[399656231,1766587260533,500.0,0.00032876,120]
[399656232,1766587260627,500.0,0.00032876,120]
[399656233,1766587260712,500.0,0.00032876,120]
[399656234,1766587260804,500.0,0.00032876,120]
[399656235,1766587260888,500.0,0.00032876,120]
[399656236,1766587260980,500.0,0.00032876,120]
[399656237,1766587261064,1675.3,0.00032876,120]
[399656238,1766587261147,500.0,0.00032876,120]
[399656239,1766587261235,500.0,0.00032876,120]
[399656240,1766587261323,1675.3,0.00032876,120]
[399656241,1766587261408,500.0,0.00032876,120]
[399656242,1766587261495,500.0,0.00032876,120]
[399656243,1766587261582,500.0,0.00032876,120]
[399656244,1766587261664,1675.3,0.00032876,120]
[399656245,1766587261746,500.0,0.00032876,120]
[399656246,1766587261838,218.26415006,0.00032876,120]
[399656247,1766587261920,500.0,0.00032876,120]
[399656248,1766587262002,500.0,0.00032876,120]
[399656249,1766587262085,1675.3,0.00032876,120]
[399656250,1766587262203,500.0,0.00032876,120]
[399656251,1766587262341,1675.3,0.00032876,120]
[399656252,1766587262432,500.0,0.00032876,120]
[399656253,1766587262512,1675.3,0.00032876,120]
[399656254,1766587262593,500.0,0.00032876,120]
[399656255,1766587262678,500.0,0.00032876,120]
[399656256,1766587262765,1675.3,0.00032876,120]
[399656257,1766587262849,500.0,0.00032876,120]
[399656258,1766587262937,243.03448227,0.00032876,120]
[399656259,1766587263020,1675.3,0.00032876,120]
[399656260,1766587263107,500.0,0.00032876,120]
[399656261,1766587263190,1675.3,0.00032876,120]
[399656262,1766587263273,500.0,0.00032876,120]
[399656263,1766587263363,500.0,0.00032876,120]
[399656264,1766587263563,1675.3,0.00032876,120]
[399656265,1766587263649,500.0,0.00032876,120]
[399656266,1766587263737,500.0,0.00032876,120]
[399656267,1766587263836,1675.3,0.00032876,120]
[399656268,1766587263922,513.3583112,0.00032876,120]
[399656269,1766587264012,500.0,0.00032876,120]
[399656270,1766587264095,500.0,0.00032876,120]
[399656271,1766587264188,1675.3,0.00032876,120]
[399656272,1766587264271,500.0,0.00032876,120]
[399656273,1766587264357,1675.3,0.00032876,120]
[399656274,1766587264446,500.0,0.00032876,120]
[399656275,1766587264530,1675.3,0.00032876,120]
[399656276,1766587264624,500.0,0.00032876,120]
[399656277,1766587264713,1675.3,0.00032876,120]
[399656278,1766587264818,500.0,0.00032876,120]
[399656279,1766587264909,1675.3,0.00032876,120]
[399656280,1766587265027,500.0,0.00032876,120]
[399656281,1766587265119,1675.3,0.00032876,120]
[399656282,1766587265239,258.75290998,0.00032876,120]
[399656283,1766587265327,1675.3,0.00032876,120]
[399656284,1766587265431,1675.3,0.00032876,120]
[399656285,1766587265535,1675.3,0.00032876,120]
[399656286,1766587265625,1675.3,0.00032876,120]
[399656287,1766587266091,500.0,0.00032876,120]
[399656288,1766587266207,1675.3,0.00032876,120]
[399656289,1766587266296,500.0,0.00032876,120]
[399656290,1766587266400,1675.3,0.00032876,120]
[399656291,1766587266530,500.0,0.00032876,120]
[399656292,1766587266723,1675.37279166,0.00032876,120]
[399656293,1766587266901,500.0,0.00032876,120]
[399656294,1766587267005,397.86119575,0.00032876,120]
[399656295,1766587267115,500.0,0.00032876,120]
[399656296,1766587267234,477.90119484,0.00032876,120]
[399656297,1766587267338,645.63740696,0.00032876,120]
[399656298,1766587267821,500.0,0.00032876,120]
[399656299,1766587268060,500.0,0.00032876,120]
[399656300,1766587268147,500.0,0.00032876,120]
[399656301,1766587268312,500.0,0.00032876,120]
[399656302,1766587268398,500.0,0.00032876,120]
[399656303,1766587268543,500.0,0.00032876,120]
[399656304,1766587268646,500.0,0.00032876,120]
[399656305,1766587268739,500.0,0.00032876,120]
[399656306,1766587268864,500.0,0.00032876,120]
[399656307,1766587268947,500.0,0.00032876,120]
[399656308,1766587269270,500.0,0.00032876,120]
[399656309,1766587269365,506.78794501,0.00032876,120]
[399656310,1766587269451,500.0,0.00032876,120]
[399656311,1766587269539,500.0,0.00032876,120]
[399656312,1766587269617,500.0,0.00032876,120]
[399656313,1766587269695,500.0,0.00032876,120]
[399656314,1766587269785,500.0,0.00032876,120]
[399656315,1766587269879,500.0,0.00032876,120]
[399656316,1766587269965,500.0,0.00032876,120]
[399656317,1766587270050,500.0,0.00032876,120]
[399656318,1766587270137,500.0,0.00032876,120]
[399656319,1766587270224,500.0,0.00032876,120]
[399656320,1766587270317,500.0,0.00032876,120]
[399656321,1766587270425,500.0,0.00032876,120]
[399656322,1766587270515,500.0,0.00032876,120]
[399656323,1766587270636,500.0,0.00032876,120]
[399656324,1766587270730,500.0,0.00032876,120]
[399656325,1766587270814,500.0,0.00032876,120]
[399656326,1766587270907,500.0,0.00032876,120]
[399656327,1766587270997,500.0,0.00032876,120]
[399656328,1766587271080,500.0,0.00032876,120]
[399656329,1766587271162,500.0,0.00032876,120]
[399656330,1766587271246,500.0,0.00032876,120]
[399656331,1766587271354,500.0,0.00032876,120]
[399656332,1766587271434,500.0,0.00032876,120]
[399656333,1766587271515,500.0,0.00032876,120]
[399656334,1766587271596,500.0,0.00032876,120]
[399656335,1766587271678,500.0,0.00032876,120]
[399656336,1766587271823,500.0,0.00032876,120]
[399656337,1766587271912,500.0,0.00032876,120]
[399656338,1766587272002,215.78059454,0.00032876,120]
[399656339,1766587272102,500.0,0.00032876,120]
[399656340,1766587272191,500.0,0.00032876,120]
[399656341,1766587272290,500.0,0.00032876,120]
[399656342,1766587272382,500.0,0.00032876,120]
[399656343,1766587272466,500.0,0.00032876,120]
[399656344,1766587272549,500.0,0.00032876,120]
[399656345,1766587272638,500.0,0.00032876,120]
[399656346,1766587272738,500.0,0.00032876,120]
[399656347,1766587272817,500.0,0.00032876,120]
[399656348,1766587272902,252.06540718,0.00032876,120]
[399656349,1766587272986,421.41065012,0.00032876,120]
[399656350,1766587273066,500.0,0.00032876,120]
[399656351,1766587273188,500.0,0.00032876,120]
[399656352,1766587273272,500.0,0.00032876,120]
[399656353,1766587273365,500.0,0.00032876,120]
[399656354,1766587273455,500.0,0.00032876,120]
[399656355,1766587273539,500.0,0.00032876,120]
[399656356,1766587273624,500.0,0.00032876,120]
[399656357,1766587273706,500.0,0.00032876,120]
[399656358,1766587273782,500.0,0.00032876,120]
[399656359,1766587273875,500.0,0.00032876,120]
[399656360,1766587273961,549.70223491,0.00032876,120]
[399656361,1766587274043,500.0,0.00032876,120]
[399656362,1766587274130,500.0,0.00032876,120]
[399656363,1766587274211,500.0,0.00032876,120]
[399656364,1766587274310,460.88340489,0.00032876,120]
[399656365,1766587274394,500.0,0.00032876,120]
[399656366,1766587274485,523.13552073,0.00032876,120]
[399656367,1766587274728,500.0,0.00032876,120]
[399656368,1766587276670,500.0,0.00032876,120]
[399656369,1766587276768,500.0,0.00032876,120]
[399656370,1766587276920,500.0,0.00032876,120]
[399656371,1766587277021,500.0,0.00032876,120]
[399656372,1766587277066,5320.52,0.00013903,2]
[399656373,1766587277094,5211.73,0.00013903,2]
[399656374,1766587277232,500.0,0.00032876,120]
[399656375,1766587277316,530.74114626,0.00032876,120]
[399656376,1766587277407,500.0,0.00032876,120]
[399656377,1766587277495,500.0,0.00032876,120]
[399656378,1766587277588,500.0,0.00032876,120]
[399656379,1766587277679,500.0,0.00032876,120]
[399656380,1766587277767,500.0,0.00032876,120]
[399656381,1766587277858,500.0,0.00032876,120]
[399656382,1766587277948,500.0,0.00032876,120]
[399656383,1766587278042,500.0,0.00032876,120]
[399656384,1766587278138,500.0,0.00032876,120]
[399656385,1766587278230,500.0,0.00032876,120]
[399656386,1766587278332,500.0,0.00032876,120]
[399656387,1766587278425,500.0,0.00032876,120]
[399656388,1766587278525,500.0,0.00032876,120]
[399656389,1766587278612,500.0,0.00032876,120]
[399656390,1766587278729,500.0,0.00032876,120]
[399656391,1766587278840,500.0,0.00032876,120]
[399656392,1766587278925,284.35930645,0.00032876,120]
[399656393,1766587279024,500.0,0.00032876,120]
[399656394,1766587279160,500.0,0.00032876,120]
[399656395,1766587279244,500.0,0.00032876,120]
[399656396,1766587279392,500.0,0.00032876,120]
[399656397,1766587279482,425.62984812,0.00032876,120]
[399656398,1766587279637,500.0,0.00032876,120]
[399656399,1766587279870,561.26911003,0.00032876,120]
[399656400,1766587282107,415.79194251,0.00032876,120]
[399656401,1766587282535,500.0,0.00032876,120]
[399656402,1766587282763,500.0,0.00032876,120]
[399656403,1766587282851,500.0,0.00032876,120]
[399656404,1766587282974,500.0,0.00032876,120]
[399656405,1766587283079,385.26503412,0.00032876,120]
[399656406,1766587298515,900.86,0.00022,30]
[399656407,1766587322835,150.0,0.00014342,2]
[399656408,1766587336943,500.0,0.00022,30]
[399656409,1766587345481,187.04374825,0.000176,30]
[399656410,1766587352188,500.0,0.00014243,2]
[399656411,1766587353672,500.0,0.00022,30]
[399656412,1766587361658,200.0,0.0001393,2]
[399656413,1766587372086,500.0,0.00022,30]
[399656414,1766587381349,300.0,0.00014342,2]
[399656415,1766587388992,888.0,0.00014342,2]
[399656416,1766587395708,500.0,0.0002,60]
[399656417,1766587439828,999.0,0.00013812,3]
[399656418,1766587441522,300.0,0.00014342,2]
[399656419,1766587469791,702.578,0.00022,30]
[399656420,1766587501286,1200.0,0.00014342,2]
[399656421,1766587501326,300.0,0.00014342,2]
[399656422,1766587502866,150.0,0.00014342,2]
[399656423,1766587561964,300.0,0.00014342,2]
[399656424,1766587621320,300.0,0.00014342,2]
[399656425,1766587626985,4563.01,0.00013889,2]
[399656426,1766587627011,9200.59,0.00013889,2]
[399656427,1766587635961,166.67,0.00014219,2]
[399656428,1766587666479,632.75,0.00014243,2]
[399656429,1766587666529,10000.01,0.00014243,2]
[399656430,1766587666566,10000.01,0.00014243,2]
[399656431,1766587666602,10000.01,0.00014243,2]
[399656432,1766587666637,10000.01,0.00014243,2]
[399656433,1766587666672,10000.01,0.00014243,2]
[399656434,1766587666705,10000.01,0.00014243,2]
[399656435,1766587666738,10000.01,0.00014243,2]
[399656436,1766587666772,10000.01,0.00014243,2]
[399656437,1766587666802,10000.01,0.00014243,2]
[399656438,1766587710505,3239.64,0.00013715,2]
[399656439,1766587745457,-150.0,0.00014242,2]
[399656440,1766587745488,-50.71377489,0.00014243,2]
[399656441,1766587749307,-222.5891991,0.00014241,2]
[399656442,1766587751432,-314.65468808,0.00014241,2]
[399656443,1766587757385,-178.09603618,0.00014241,2]
[399656444,1766587759856,-289.06394144,0.00014241,2]
[399656445,1766587761811,-245.99778002,0.00014241,2]
[399656446,1766587762900,500.0,0.0001368,2]
[399656447,1766587764830,-231.81850656,0.00014241,2]
[399656448,1766587766998,-237.73537449,0.00014241,2]
[399656449,1766587773861,-222.33141467,0.00014241,2]
[399656450,1766587775883,-502.72372436,0.00014241,2]
[399656451,1766587777531,-302.00611386,0.00014241,2]
[399656452,1766587778778,-214.86025131,0.00014241,2]
[399656453,1766587781649,-371.06180696,0.00014241,2]
[399656454,1766587783159,-233.0445807,0.00014241,2]
[399656455,1766587784617,-334.05210067,0.00014241,2]
[399656456,1766587786133,-258.7351575,0.00014241,2]
[399656457,1766587789900,-202.62648438,0.00014241,2]
[399656458,1766587792203,-290.56774108,0.00014241,2]
[399656459,1766587793927,-234.68775036,0.00014241,2]
[399656460,1766587797113,-275.6584545,0.00014241,2]
[399656461,1766587798981,-300.0,0.00014241,2]
[399656462,1766587800565,-279.67423165,0.00014241,2]
[399656463,1766587817610,-193.94170341,0.0001424,2]
[399656464,1766587820782,-106.05829659,0.0001424,2]
[399656465,1766587820808,-88.94170341,0.0001424,2]
[399656466,1766587825010,-300.0,0.0001424,2]
[399656467,1766587826531,-300.0,0.0001424,2]
[399656468,1766587831218,-500.0,0.0001424,2]
[399656469,1766587832244,-11.05829659,0.0001424,2]
[399656470,1766587832255,-300.0,0.0001424,2]
[399656471,1766587832266,-11821.01627268,0.00014241,2]
[399656472,1766587832276,-263.66662464,0.00014241,2]
[399656473,1766587832286,-770.08786736,0.00014241,2]
[399656474,1766587832296,-500.0,0.00014242,2]
[399656475,1766587832305,-478.90673007,0.00014242,2]
[399656476,1766587832315,-500.0,0.00014242,2]
[399656477,1766587832325,-500.0,0.00014242,2]
[399656478,1766587832335,-500.0,0.00014242,2]
[399656479,1766587832345,-500.0,0.00014242,2]
[399656480,1766587832354,-500.0,0.00014242,2]
[399656481,1766587832364,-511.05538691,0.00014242,2]
[399656482,1766587832373,-500.0,0.00014242,2]
[399656483,1766587832383,-500.0,0.00014242,2]
[399656484,1766587832393,-500.0,0.00014242,2]
[399656485,1766587832403,-500.0,0.00014242,2]
[399656486,1766587832413,-500.0,0.00014242,2]
[399656487,1766587832422,-500.0,0.00014242,2]
[399656488,1766587832431,-500.0,0.00014242,2]
[399656489,1766587832441,-500.0,0.00014242,2]
[399656490,1766587832455,-500.0,0.00014242,2]
[399656491,1766587832465,-500.0,0.00014242,2]
[399656492,1766587832474,-500.0,0.00014242,2]
[399656493,1766587832484,-500.0,0.00014242,2]
[399656494,1766587832494,-500.0,0.00014242,2]
[399656495,1766587832504,-500.0,0.00014242,2]
[399656496,1766587832514,-500.0,0.00014242,2]
[399656497,1766587832525,-500.0,0.00014242,2]
[399656498,1766587832534,-500.0,0.00014242,2]
[399656499,1766587832544,-500.0,0.00014242,2]
[399656500,1766587832553,-500.0,0.00014242,2]
[399656501,1766587832563,-500.0,0.00014242,2]
[399656502,1766587832573,-500.0,0.00014242,2]
[399656503,1766587832582,-500.0,0.00014242,2]
[399656504,1766587832597,-500.0,0.00014242,2]
[399656505,1766587832607,-499.99999999,0.00014242,2]
[399656506,1766587832616,-152758.8329735,0.00014243,2]
[399656507,1766587832628,-3220.41068509,0.00014243,2]
[399656508,1766587832657,-5083.10287176,0.00014243,2]
[399656509,1766587832668,-290.0,0.00014243,2]
[399656510,1766587832701,-6880.14962709,0.00014243,2]
[399656511,1766587832714,-1217.29571367,0.00014243,2]
[399656512,1766587832726,-1538.8427499,0.00014243,2]
[399656513,1766587832758,-1037.1543125,0.00014243,2]
[399656514,1766587833264,-229.00461773,0.00014243,2]
[399656605,1766587835836,-200.26344736,0.00014243,2]
[399656606,1766587838064,-292.42996954,0.00014243,2]
[399656607,1766587838279,-86500.0,0.00014243,2]
[399656608,1766587838292,-650068.95925697,0.00014243,2]
[399656609,1766587838303,-164.42994611,0.00014341,2]
[399656610,1766587838314,-267.3552,0.00014342,2]
[399656611,1766587838324,-2500.0,0.00014342,2]
[399656612,1766587838334,-300.0,0.00014342,2]
[399656613,1766587838344,-195.0,0.00014342,2]
[399656614,1766587838354,-1087.565,0.00014343,2]
[399656615,1766587838365,-178.007,0.00014343,2]
[399656616,1766587838375,-7294.56490357,0.00014343,2]
[399656617,1766587838385,-33504.5899,0.00014343,2]
[399656618,1766587838395,-300.0,0.00014348,2]
[399656619,1766587838405,-195.0,0.00014348,2]
[399656620,1766587838415,-500.0,0.00014348,2]
[399656621,1766587838425,-166.66,0.00014381,2]
[399656622,1766587838435,-151.0,0.00014434,2]
[399656623,1766587838448,-151.0,0.00014434,2]
[399656624,1766587838459,-153.43746121,0.00014434,2]
[399656625,1766587838470,-150.99,0.0001444,2]
[399656626,1766587838480,-9999.99,0.0001444,2]
[399656627,1766587838491,-150.99,0.0001444,2]
[399656628,1766587838502,-999.99,0.0001444,2]
[399656629,1766587838512,-9633.98,0.0001444,2]
[399656630,1766587838524,-2033.81,0.0001444,2]
[399656631,1766587838534,-8282.55,0.0001444,2]
[399656632,1766587838544,-500.0,0.00014441,2]
[399656633,1766587838554,-500.0,0.00014441,2]
[399656634,1766587838565,-500.0,0.00014441,2]
[399656635,1766587838575,-500.0,0.00014441,2]
[399656636,1766587838586,-500.0,0.00014441,2]
[399656637,1766587838596,-500.0,0.00014441,2]
[399656638,1766587838606,-500.0,0.00014441,2]
[399656639,1766587838615,-500.0,0.00014441,2]
[399656641,1766587838625,-500.0,0.00014441,2]
[399656643,1766587838634,-500.0,0.00014441,2]
[399656645,1766587838645,-500.0,0.00014441,2]
[399656646,1766587838655,-500.0,0.00014441,2]
[399656647,1766587838665,-500.0,0.00014441,2]
[399656648,1766587838676,-500.0,0.00014441,2]
[399656649,1766587838686,-500.0,0.00014441,2]
[399656650,1766587838696,-500.0,0.00014441,2]
[399656651,1766587838706,-500.0,0.00014441,2]
[399656652,1766587838716,-500.0,0.00014441,2]
[399656653,1766587838725,-496.87606745,0.00014441,2]
[399656654,1766587838736,-500.0,0.00014441,2]
[399656655,1766587838746,-500.0,0.00014441,2]
[399656657,1766587838755,-500.0,0.00014441,2]
[399656658,1766587838765,-500.0,0.00014441,2]
[399656660,1766587838774,-500.0,0.00014441,2]
[399656662,1766587838784,-500.0,0.00014441,2]
[399656664,1766587838794,-500.0,0.00014441,2]
[399656665,1766587838804,-521.52385313,0.00014441,2]
[399656666,1766587838813,-500.0,0.00014441,2]
[399656667,1766587838823,-500.0,0.00014441,2]
[399656668,1766587838832,-500.0,0.00014441,2]
[399656669,1766587838842,-500.0,0.00014441,2]
[399656670,1766587838852,-500.0,0.00014441,2]
[399656671,1766587838861,-500.0,0.00014441,2]
[399656672,1766587838872,-500.0,0.00014441,2]
[399656673,1766587838882,-500.0,0.00014441,2]
[399656674,1766587838892,-500.0,0.00014441,2]
[399656675,1766587838902,-500.0,0.00014441,2]
[399656676,1766587838912,-500.0,0.00014441,2]
[399656677,1766587838922,-500.0,0.00014441,2]
[399656678,1766587838933,-1634.06,0.00014441,2]
[399656679,1766587838943,-500.0,0.00014441,2]
[399656680,1766587838953,-500.0,0.00014441,2]
[399656681,1766587838963,-500.0,0.00014441,2]
[399656682,1766587838974,-500.0,0.00014443,2]
[399656683,1766587838985,-500.0,0.00014443,2]
[399656684,1766587838995,-500.0,0.00014443,2]
[399656685,1766587839006,-500.0,0.00014443,2]
[399656686,1766587839016,-500.0,0.00014443,2]
[399656687,1766587839027,-500.0,0.00014443,2]
[399656688,1766587839038,-478.48614687,0.00014443,2]
[399656689,1766587839049,-582.59898014,0.00014443,2]
[399656690,1766587839060,-485.01035695,0.00014443,2]
[399656691,1766587839071,-500.0,0.00014443,2]
[399656692,1766587839082,-500.0,0.00014443,2]
[399656693,1766587839093,-500.0,0.00014443,2]
[399656694,1766587839104,-500.0,0.00014443,2]
[399656695,1766587839114,-3933.70575324,0.0001451,2]
[399656696,1766587839124,-32943.61,0.00014621,2]
[399656697,1766587839134,-500.0,0.00014622,2]
[399656698,1766587839144,-17563.00161055,0.00014648,2]
[399656699,1766587839153,-166.66,0.00014671,2]
[399656700,1766587839165,-1634.06,0.00014715,2]
[399656701,1766587839175,-1000.0,0.00014738,2]
[399656702,1766587839186,-7294.56490351,0.00014738,2]
[399656703,1766587839197,-500.0,0.00014817,2]
[399656704,1766587839207,-29893.83477756,0.00014817,2]
[399656705,1766587839217,-500.0,0.00014837,2]
[399656706,1766587839228,-500.0,0.00014837,2]
[399656707,1766587839239,-200.0,0.00014879,2]
[399656708,1766587839249,-207.4,0.00014879,2]
[399656709,1766587839260,-215.0738,0.00014879,2]
[399656710,1766587839270,-223.0315306,0.00014879,2]
[399656711,1766587839280,-231.28369723,0.00014879,2]
[399656712,1766587839290,-239.84119403,0.00014879,2]
[399656713,1766587839299,-248.71531821,0.00014879,2]
[399656714,1766587839308,-257.91778498,0.00014879,2]
[399656715,1766587839318,-267.46074303,0.00014879,2]
[399656716,1766587839327,-277.35679052,0.00014879,2]
[399656717,1766587839336,-500.0,0.00014879,2]
[399656718,1766587839346,-500.0,0.00014879,2]
[399656719,1766587839355,-500.0,0.00014879,2]
[399656720,1766587839365,-500.0,0.00014879,2]
[399656721,1766587839375,-500.0,0.00014879,2]
[399656722,1766587839385,-500.0,0.00014879,2]
[399656723,1766587839395,-500.0,0.00014879,2]
[399656724,1766587839404,-500.0,0.00014879,2]
[399656725,1766587839416,-500.0,0.00014879,2]
[399656726,1766587839426,-500.0,0.00014879,2]
[399656727,1766587839436,-500.0,0.00014879,2]
[399656728,1766587839446,-500.0,0.00014879,2]
[399656729,1766587839459,-500.0,0.00014879,2]
[399656730,1766587839468,-500.0,0.00014879,2]
[399656731,1766587839479,-500.0,0.00014879,2]
[399656732,1766587839489,-500.0,0.00014879,2]
[399656733,1766587839499,-500.0,0.00014879,2]
[399656734,1766587839509,-500.0,0.00014879,2]
[399656735,1766587839520,-500.0,0.00014879,2]
[399656736,1766587839531,-500.0,0.00014879,2]
[399656737,1766587839541,-500.0,0.00014879,2]
[399656738,1766587839551,-500.0,0.00014879,2]
[399656739,1766587839560,-209.40437684,0.00014879,2]
[399656740,1766587839570,-500.0,0.00014879,2]
[399656741,1766587839580,-500.0,0.00014879,2]
[399656742,1766587839589,-500.0,0.00014879,2]
[399656743,1766587839598,-500.0,0.00014879,2]
[399656744,1766587839608,-500.0,0.00014879,2]
[399656745,1766587839617,-365.89373099,0.00014879,2]
[399656746,1766587839627,-646.81207338,0.00014879,2]
[399656747,1766587839637,-162.42297638,0.00014879,2]
[399656748,1766587839647,-620.0,0.00014879,2]
[399656749,1766587839656,-543.0,0.00014879,2]